fUSD/lending_fUSD_20260324
["ID","MTS","AMOUNT","RATE_DAILY","PERIOD"]
[408834493,1774338667532,-584.31752081,0.00041095,120]
[408834494,1774338667542,-500.0,0.00041095,120]
[408834495,1774338667553,-978.43,0.00041095,120]
[408834496,1774338667564,-500.0,0.00041095,120]
[408834497,1774338667574,-500.0,0.00041095,120]
[408834498,1774338667586,-500.0,0.00041095,120]
[408834499,1774338667596,-500.0,0.00041095,120]
[408834500,1774338667606,-500.0,0.00041095,120]
[408834501,1774338667617,-500.0,0.00041095,120]
[408834502,1774338667630,-500.0,0.00041095,120]
[408834503,1774338667640,-500.0,0.00041095,120]
[408834504,1774338667649,-500.0,0.00041095,120]
[408834505,1774338667659,-500.0,0.00041095,120]
[408834506,1774338667669,-500.0,0.00041095,120]
[408834507,1774338667678,-500.0,0.00041095,120]
[408834508,1774338667688,-500.0,0.00041095,120]
[408834509,1774338667698,-500.0,0.00041095,120]
[408834510,1774338667708,-500.0,0.00041095,120]
[408834511,1774338667718,-500.0,0.00041095,120]
[408834512,1774338667727,-1215.44,0.00041095,120]
[408834513,1774338667737,-500.0,0.00041095,120]
[408834514,1774338667747,-500.0,0.00041095,120]
[408834515,1774338667756,-500.0,0.00041095,120]
[408834516,1774338667766,-500.0,0.00041095,120]
[408834517,1774338667775,-1046.27,0.00041095,120]
[408834518,1774338667785,-500.0,0.00041095,120]
[408834519,1774338667794,-500.0,0.00041095,120]
[408834520,1774338667804,-500.0,0.00041095,120]
[408834521,1774338667814,-500.0,0.00041095,120]
[408834522,1774338667823,-500.0,0.00041095,120]
[408834523,1774338667833,-1613.72,0.00041095,120]
[408834524,1774338667843,-500.0,0.00041095,120]
[408834525,1774338667853,-600.81462771,0.00041095,120]
[408834526,1774338667862,-1897.96,0.00041095,120]
[408834527,1774338667871,-554.93325439,0.00041095,120]
[408834528,1774338667881,-500.0,0.00041095,120]
[408834529,1774338667890,-770.58,0.00041095,120]
[408834530,1774338667900,-1960.33,0.00041095,120]
[408834531,1774338667909,-500.0,0.00041095,120]
[408834532,1774338667919,-500.0,0.00041095,120]
[408834533,1774338667928,-500.0,0.00041095,120]
[408834534,1774338667938,-3056.27,0.00041095,120]
[408834535,1774338667947,-500.0,0.00041095,120]
[408834536,1774338667956,-500.0,0.00041095,120]
[408834537,1774338667966,-500.0,0.00041095,120]
[408834538,1774338667975,-1228.99,0.00041095,120]
[408834539,1774338667985,-500.0,0.00041095,120]
[408834540,1774338667994,-680.28,0.00041095,120]
[408834541,1774338668003,-500.0,0.00041095,120]
[408834542,1774338668013,-500.0,0.00041095,60]
[408834543,1774338668022,-769.44,0.00041095,120]
[408834544,1774338668031,-500.0,0.00041095,120]
[408834545,1774338668040,-500.0,0.00041095,120]
[408834546,1774338668050,-500.0,0.00041095,120]
[408834547,1774338668059,-500.0,0.00041095,120]
[408834548,1774338668069,-500.0,0.00041095,120]
[408834549,1774338668078,-500.0,0.00041095,120]
[408834550,1774338668087,-500.0,0.00041095,120]
[408834551,1774338668096,-855.78,0.00041095,120]
[408834552,1774338668106,-500.0,0.00041095,120]
[408834553,1774338668115,-500.0,0.00041095,120]
[408834554,1774338668126,-1078.9,0.00041095,120]
[408834555,1774338668135,-1780.32,0.00041095,120]
[408834556,1774338668615,-1099.3,0.00041095,120]
[408834557,1774338668641,-305.36839234,0.00041095,120]
[408834558,1774338668651,-246.63298531,0.00041095,120]
[408834559,1774338668660,-699.82,0.00041095,120]
[408834560,1774338668670,-500.0,0.00041095,120]
[408834561,1774338668679,-500.0,0.00041095,120]
[408834562,1774338668688,-500.0,0.00041095,120]
[408834563,1774338668698,-759.17,0.00041095,120]
[408834564,1774338668707,-500.0,0.00041095,120]
[408834565,1774338668717,-500.0,0.00041095,120]
[408834566,1774338668728,-500.0,0.00041095,120]
[408834567,1774338668737,-500.0,0.00041095,120]
[408834568,1774338668747,-931.09,0.00041095,120]
[408834569,1774338668756,-815.17,0.00041095,120]
[408834570,1774338668766,-500.0,0.00041095,120]
[408834571,1774338668775,-500.0,0.00041095,120]
[408834572,1774338668784,-500.0,0.00041095,120]
[408834573,1774338668793,-246.3864057,0.00041095,120]
[408834574,1774338668803,-500.0,0.00041095,120]
[408834575,1774338668812,-408.11439289,0.00041095,120]
[408834576,1774338668822,-536.61797955,0.00041095,120]
[408834577,1774338668832,-500.0,0.00041095,120]
[408834578,1774338668841,-656.8,0.00041095,120]
[408834579,1774338668851,-500.0,0.00041095,120]
[408834580,1774338668860,-500.0,0.00041095,120]
[408834581,1774338668870,-500.0,0.00041095,120]
[408834582,1774338668879,-500.0,0.00041095,120]
[408834583,1774338668889,-500.0,0.00041095,120]
[408834584,1774338668898,-500.0,0.00041095,120]
[408834585,1774338668907,-523.72066444,0.00041095,120]
[408834586,1774338668916,-500.0,0.00041095,120]
[408834587,1774338668926,-500.0,0.00041095,120]
[408834588,1774338668935,-553.68756782,0.00041095,120]
[408834589,1774338668945,-500.0,0.00041095,120]
[408834590,1774338668954,-500.0,0.00041095,120]
[408834591,1774338668963,-671.25,0.00041095,120]
[408834592,1774338668973,-500.0,0.00041095,120]
[408834593,1774338668982,-614.51,0.00041095,120]
[408834594,1774338668992,-590.92896958,0.00041095,120]
[408834595,1774338669001,-1323.85,0.00041095,7]
[408834596,1774338669010,-500.0,0.00041095,120]
[408834597,1774338669020,-500.0,0.00041095,14]
[408834598,1774338669029,-500.0,0.00041095,120]
[408834599,1774338669043,-984.57,0.00041095,120]
[408834600,1774338669053,-500.0,0.00041095,120]
[408834601,1774338669063,-500.0,0.00041095,120]
[408834602,1774338669073,-729.45,0.00041095,120]
[408834603,1774338669083,-500.0,0.00041095,120]
[408834604,1774338669093,-500.0,0.00041095,120]
[408834605,1774338669103,-567.45831924,0.00041095,120]
[408834606,1774338669112,-500.0,0.00041095,120]
[408834607,1774338669122,-500.0,0.00041095,120]
[408834608,1774338669132,-227.9097621,0.00041095,120]
[408834609,1774338669142,-500.0,0.00041095,120]
[408834610,1774338669152,-510.84663697,0.00041095,30]
[408834611,1774338669161,-926.4,0.00041095,120]
[408834612,1774338669171,-1291.11,0.00041095,120]
[408834613,1774338669180,-500.0,0.00041095,120]
[408834614,1774338669190,-500.0,0.00041095,120]
[408834615,1774338669200,-560.4,0.00041095,120]
[408834616,1774338669210,-500.0,0.00041095,120]
[408834617,1774338669220,-617.21,0.00041095,120]
[408834618,1774338669229,-286.87882808,0.00041095,120]
[408834619,1774338669240,-500.0,0.00041095,120]
[408834620,1774338669250,-500.0,0.00041095,120]
[408834621,1774338669259,-1726.06,0.00041095,120]
[408834622,1774338669273,-500.0,0.00041095,120]
[408834623,1774338669283,-500.0,0.00041095,120]
[408834624,1774338669293,-500.0,0.00041095,120]
[408834625,1774338669303,-500.0,0.00041095,120]
[408834626,1774338669312,-500.0,0.00041095,120]
[408834627,1774338669322,-500.0,0.00041095,120]
[408834628,1774338669333,-504.78108074,0.00041095,120]
[408834629,1774338669343,-500.0,0.00041095,120]
[408834630,1774338669355,-500.0,0.00041095,120]
[408834631,1774338669366,-500.0,0.00041095,120]
[408834632,1774338669376,-1356.13,0.00041095,120]
[408834633,1774338669389,-500.0,0.00041095,120]
[408834634,1774338669399,-801.87,0.00041095,120]
[408834635,1774338669409,-500.0,0.00041095,120]
[408834636,1774338669419,-500.0,0.00041095,120]
[408834637,1774338669431,-500.0,0.00041095,120]
[408834638,1774338669440,-500.0,0.00041095,120]
[408834639,1774338669450,-2922.62,0.00041095,60]
[408834640,1774338669459,-617.76130735,0.00041095,120]
[408834641,1774338669469,-500.0,0.00041095,120]
[408834642,1774338669478,-821.12,0.00041095,120]
[408834643,1774338669488,-500.0,0.00041095,120]
[408834644,1774338669498,-665.38,0.00041095,120]
[408834645,1774338669508,-500.0,0.00041095,120]
[408834646,1774338669517,-866.85,0.00041095,120]
[408834647,1774338669527,-500.0,0.00041095,120]
[408834648,1774338669537,-500.0,0.00041095,120]
[408834649,1774338669547,-500.0,0.00041095,120]
[408834650,1774338669556,-500.0,0.00041095,120]
[408834651,1774338669566,-645.06616501,0.00041095,120]
[408834652,1774338669575,-500.0,0.00041095,120]
[408834653,1774338669585,-500.0,0.00041095,120]
[408834654,1774338669595,-500.0,0.00041095,120]
[408834655,1774338669605,-2859.83,0.00041095,120]
[408834656,1774338669614,-500.0,0.00041095,120]
[408834657,1774338669624,-500.0,0.00041095,120]
[408834658,1774338669633,-500.0,0.00041095,120]
[408834659,1774338669643,-644.49,0.00041095,120]
[408834660,1774338669652,-500.0,0.00041095,120]
[408834661,1774338669662,-719.59,0.00041095,120]
[408834662,1774338669672,-4166.66,0.00041095,120]
[408834663,1774338669681,-500.0,0.00041095,120]
[408834664,1774338669691,-500.0,0.00041095,120]
[408834665,1774338669700,-300.72427485,0.00041095,120]
[408834666,1774338669711,-679.57,0.00041095,120]
[408834667,1774338669720,-500.0,0.00041095,120]
[408834668,1774338669730,-500.0,0.00041095,120]
[408834669,1774338669740,-599.93,0.00041095,120]
[408834670,1774338669749,-500.0,0.00041095,120]
[408834671,1774338669759,-500.0,0.00041095,120]
[408834672,1774338669768,-536.28148615,0.00041095,120]
[408834673,1774338669779,-500.0,0.00041095,120]
[408834674,1774338669788,-500.0,0.00041095,120]
[408834675,1774338669798,-1432.07,0.00041095,120]
[408834676,1774338669808,-500.0,0.00041095,120]
[408834677,1774338669818,-500.0,0.00041095,120]
[408834678,1774338669828,-500.0,0.00041095,120]
[408834679,1774338669837,-500.0,0.00041095,120]
[408834680,1774338669847,-730.01,0.00041095,120]
[408834681,1774338669857,-500.0,0.00041095,120]
[408834682,1774338669867,-500.0,0.00041095,120]
[408834683,1774338669876,-508.87,0.00041095,120]
[408834684,1774338669886,-500.0,0.00041095,120]
[408834685,1774338669896,-883.47,0.00041095,120]
[408834686,1774338669905,-500.0,0.00041095,120]
[408834687,1774338669915,-500.0,0.00041095,120]
[408834688,1774338669924,-500.0,0.00041095,120]
[408834689,1774338669934,-500.0,0.00041095,120]
[408834690,1774338669943,-500.0,0.00041095,30]
[408834691,1774338669953,-500.0,0.00041095,120]
[408834692,1774338669962,-500.0,0.00041095,120]
[408834693,1774338669972,-538.00686207,0.00041095,120]
[408834694,1774338669984,-500.0,0.00041095,120]
[408834695,1774338669995,-500.0,0.00041095,120]
[408834696,1774338670005,-500.0,0.00041095,120]
[408834697,1774338670017,-500.0,0.00041095,120]
[408834698,1774338670028,-500.0,0.00041095,120]
[408834699,1774338670038,-759.73,0.00041095,120]
[408834700,1774338670048,-749.74,0.00041095,120]
[408834701,1774338670058,-1171.93,0.00041095,120]
[408834702,1774338670068,-892.78,0.00041095,120]
[408834703,1774338670079,-500.0,0.00041095,120]
[408834704,1774338670088,-978.13,0.00041095,120]
[408834705,1774338670099,-500.0,0.00041095,120]
[408834706,1774338670108,-500.0,0.00041095,120]
[408834707,1774338670118,-500.0,0.00041095,120]
[408834708,1774338670129,-674.49,0.00041095,120]
[408834709,1774338670139,-1973.42,0.00041095,120]
[408834710,1774338670148,-1355.12,0.00041095,120]
[408834711,1774338670158,-500.0,0.00041095,120]
[408834712,1774338670168,-500.0,0.00041095,120]
[408834713,1774338670178,-1044.01,0.00041095,120]
[408834714,1774338670188,-500.0,0.00041095,120]
[408834715,1774338670199,-786.73,0.00041095,120]
[408834716,1774338670211,-500.0,0.00041095,120]
[408834717,1774338670222,-500.0,0.00041095,120]
[408834718,1774338670231,-1476.03,0.00041095,120]
[408834719,1774338670241,-500.0,0.00041095,120]
[408834720,1774338670250,-500.0,0.00041095,120]
[408834721,1774338670259,-500.0,0.00041095,120]
[408834722,1774338670269,-500.0,0.00041095,120]
[408834723,1774338670279,-647.98,0.00041095,120]
[408834724,1774338670290,-500.0,0.00041095,120]
[408834725,1774338670300,-947.33,0.00041095,120]
[408834726,1774338670311,-521.29376522,0.00041095,120]
[408834727,1774338670321,-500.0,0.00041095,120]
[408834728,1774338670330,-519.68084342,0.00041095,120]
[408834729,1774338670340,-500.0,0.00041095,120]
[408834730,1774338670350,-590.04,0.00041095,120]
[408834731,1774338670363,-500.0,0.00041095,120]
[408834732,1774338670372,-924.76,0.00041095,120]
[408834733,1774338670381,-500.0,0.00041095,120]
[408834734,1774338670391,-500.0,0.00041095,120]
[408834735,1774338670402,-500.0,0.00041095,120]
[408834736,1774338670413,-500.0,0.00041095,120]
[408834737,1774338670423,-1633.92,0.00041095,120]
[408834738,1774338670434,-500.0,0.00041095,120]
[408834739,1774338670444,-1295.04,0.00041095,120]
[408834740,1774338670454,-500.0,0.00041095,120]
[408834741,1774338670464,-550.02728388,0.00041095,120]
[408834742,1774338670474,-342.1082081,0.00041095,120]
[408834743,1774338670483,-500.0,0.00041095,120]
[408834744,1774338670492,-2500.0,0.00041095,120]
[408834745,1774338670501,-500.0,0.00041095,120]
[408834746,1774338670511,-500.0,0.00041095,120]
[408834747,1774338670520,-554.69047329,0.00041095,120]
[408834748,1774338670529,-1441.35,0.00041095,60]
[408834749,1774338670539,-588.11,0.00041095,120]
[408834750,1774338670548,-1951.73,0.00041095,120]
[408834751,1774338670557,-500.0,0.00041095,120]
[408834752,1774338670567,-588.96096269,0.00041095,120]
[408834753,1774338670576,-500.0,0.00041095,120]
[408834754,1774338670586,-500.0,0.00041095,120]
[408834755,1774338670596,-489.4371482,0.00041095,7]
[408834756,1774338670605,-500.0,0.00041095,120]
[408834757,1774338670615,-500.0,0.00041095,120]
[408834758,1774338670624,-500.0,0.00041095,120]
[408834759,1774338670634,-500.0,0.00041095,120]
[408834760,1774338670643,-2782.79,0.00041095,120]
[408834761,1774338670653,-605.44,0.00041095,120]
[408834762,1774338670662,-500.0,0.00041095,120]
[408834763,1774338670672,-500.0,0.00041095,120]
[408834764,1774338670682,-500.0,0.00041095,120]
[408834765,1774338670692,-500.0,0.00041095,120]
[408834766,1774338670701,-894.69,0.00041095,120]
[408834767,1774338670711,-500.0,0.00041095,120]
[408834768,1774338670720,-500.0,0.00041095,120]
[408834769,1774338670729,-500.0,0.00041095,120]
[408834770,1774338670739,-500.0,0.00041095,120]
[408834771,1774338670748,-525.27,0.00041095,120]
[408834772,1774338670757,-500.0,0.00041095,120]
[408834773,1774338670767,-500.0,0.00041095,120]
[408834774,1774338670775,-1730.58,0.00041095,120]
[408834775,1774338670784,-517.76,0.00041095,120]
[408834776,1774338670793,-500.0,0.00041095,120]
[408834777,1774338670802,-500.0,0.00041095,120]
[408834778,1774338670811,-500.0,0.00041095,120]
[408834779,1774338670821,-500.0,0.00041095,120]
[408834780,1774338670830,-500.0,0.00041095,120]
[408834781,1774338670839,-500.0,0.00041095,120]
[408834782,1774338670848,-500.0,0.00041095,120]
[408834783,1774338670857,-500.0,0.00041095,120]
[408834784,1774338670866,-527.81856806,0.00041095,120]
[408834785,1774338670875,-1269.84,0.00041095,120]
[408834786,1774338670884,-500.0,0.00041095,120]
[408834787,1774338670893,-500.0,0.00041095,120]
[408834788,1774338670902,-500.0,0.00041095,120]
[408834789,1774338670911,-500.0,0.00041095,120]
[408834790,1774338670920,-1536.15,0.00041095,120]
[408834791,1774338670929,-1493.36,0.00041095,120]
[408834792,1774338670939,-500.0,0.00041095,120]
[408834793,1774338670949,-500.0,0.00041095,120]
[408834794,1774338670958,-550.14254595,0.00041095,120]
[408834795,1774338670967,-528.12093376,0.00041095,120]
[408834796,1774338670976,-632.12,0.00041095,120]
[408834797,1774338671101,-601.07567116,0.00041095,120]
[408834798,1774338671111,-600.11,0.00041095,120]
[408834799,1774338671120,-500.0,0.00041095,120]
[408834800,1774338671129,-1551.97,0.00041095,120]
[408834801,1774338671138,-566.11230906,0.00041095,120]
[408834802,1774338671147,-500.0,0.00041095,120]
[408834803,1774338671156,-724.43,0.00041095,120]
[408834804,1774338671166,-2431.7,0.00041095,120]
[408834805,1774338671175,-500.0,0.00041095,120]
[408834806,1774338671187,-500.0,0.00041095,120]
[408834807,1774338671204,-500.0,0.00041095,120]
[408834808,1774338671213,-1186.56,0.00041095,120]
[408834809,1774338671223,-500.0,0.00041095,120]
[408834810,1774338671232,-1747.14,0.00041095,120]
[408834811,1774338671241,-1632.69,0.00041095,120]
[408834812,1774338671250,-500.0,0.00041095,120]
[408834813,1774338671259,-500.0,0.00041095,120]
[408834814,1774338671269,-500.0,0.00041095,120]
[408834815,1774338671278,-500.0,0.00041095,120]
[408834816,1774338671287,-517.15,0.00041095,120]
[408834817,1774338671296,-500.0,0.00041095,120]
[408834818,1774338671306,-1598.01,0.00041095,120]
[408834819,1774338671315,-500.0,0.00041095,120]
[408834820,1774338671324,-500.0,0.00041095,120]
[408834821,1774338671333,-500.0,0.00041095,120]
[408834822,1774338671342,-500.0,0.00041095,120]
[408834823,1774338671353,-1075.02,0.00041095,120]
[408834824,1774338671364,-1616.03,0.00041095,120]
[408834825,1774338671374,-500.0,0.00041095,120]
[408834826,1774338671383,-161.66579,0.00041095,120]
[408834827,1774338671392,-526.01549555,0.00041095,120]
[408834828,1774338671403,-500.0,0.00041095,120]
[408834829,1774338671412,-1428.85,0.00041095,120]
[408834830,1774338671421,-500.0,0.00041095,120]
[408834831,1774338671431,-500.0,0.00041095,120]
[408834832,1774338671440,-866.03,0.00041095,120]
[408834833,1774338671450,-665.63,0.00041095,120]
[408834834,1774338671459,-1926.05,0.00041095,120]
[408834835,1774338671468,-403.70147938,0.00041095,120]
[408834836,1774338671477,-2687.41,0.00041095,120]
[408834837,1774338671487,-500.0,0.00041095,120]
[408834838,1774338671496,-728.07,0.00041095,120]
[408834839,1774338671505,-604.38,0.00041095,120]
[408834840,1774338671514,-638.16,0.00041095,120]
[408834841,1774338671524,-500.0,0.00041095,120]
[408834842,1774338671533,-500.0,0.00041095,120]
[408834843,1774338671543,-1493.48,0.00041095,30]
[408834844,1774338671552,-500.0,0.00041095,120]
[408834845,1774338671562,-801.43,0.00041095,120]
[408834846,1774338671571,-752.4,0.00041095,120]
[408834847,1774338671580,-552.47,0.00041095,120]
[408834848,1774338671590,-500.0,0.00041095,120]
[408834849,1774338671600,-500.0,0.00041095,120]
[408834850,1774338671610,-537.86909175,0.00041095,120]
[408834851,1774338671620,-500.0,0.00041095,120]
[408834852,1774338671630,-995.77,0.00041095,120]
[408834853,1774338671640,-500.0,0.00041095,120]
[408834854,1774338671650,-500.0,0.00041095,120]
[408834855,1774338671659,-500.0,0.00041095,120]
[408834856,1774338671669,-500.0,0.00041095,120]
[408834857,1774338671678,-500.0,0.00041095,120]
[408834858,1774338671687,-878.89,0.00041095,120]
[408834859,1774338671697,-533.5163298,0.00041095,120]
[408834860,1774338671707,-544.01483714,0.00041095,120]
[408834861,1774338671717,-2173.76,0.00041095,120]
[408834862,1774338671726,-1298.61,0.00041095,120]
[408834863,1774338671736,-500.0,0.00041095,30]
[408834864,1774338671746,-1791.61,0.00041095,120]
[408834865,1774338671755,-500.0,0.00041095,60]
[408834866,1774338671764,-500.0,0.00041095,120]
[408834867,1774338671774,-500.0,0.00041095,120]
[408834868,1774338671783,-500.0,0.00041095,120]
[408834869,1774338671792,-500.0,0.00041095,120]
[408834870,1774338671801,-551.0234165,0.00041095,120]
[408834871,1774338671810,-500.0,0.00041095,120]
[408834872,1774338671820,-1260.51,0.00041095,120]
[408834873,1774338671829,-637.16619015,0.00041095,120]
[408834874,1774338671839,-500.0,0.00041095,120]
[408834875,1774338671848,-663.27,0.00041095,120]
[408834876,1774338671857,-500.0,0.00041095,120]
[408834877,1774338671867,-1454.94,0.00041095,120]
[408834878,1774338671876,-500.0,0.00041095,120]
[408834879,1774338671885,-500.0,0.00041095,120]
[408834880,1774338671895,-500.0,0.00041095,120]
[408834881,1774338671905,-1601.87,0.00041095,120]
[408834882,1774338671914,-500.0,0.00041095,120]
[408834883,1774338671924,-500.0,0.00041095,120]
[408834884,1774338671933,-1108.88,0.00041095,120]
[408834885,1774338671943,-503.18077999,0.00041095,120]
[408834886,1774338671952,-500.0,0.00041095,120]
[408834887,1774338671962,-1258.26,0.00041095,120]
[408834888,1774338671971,-500.0,0.00041095,120]
[408834889,1774338671980,-500.0,0.00041095,120]
[408834890,1774338671989,-535.232837,0.00041095,120]
[408834891,1774338671998,-617.76709028,0.00041095,120]
[408834892,1774338672008,-529.44132877,0.00041095,120]
[408834893,1774338672017,-631.57,0.00041095,120]
[408834894,1774338672026,-1791.18,0.00041095,120]
[408834895,1774338672036,-500.0,0.00041095,120]
[408834896,1774338672046,-500.0,0.00041095,120]
[408834897,1774338672055,-514.08,0.00041095,120]
[408834898,1774338672065,-585.76,0.00041095,120]
[408834899,1774338672074,-472.68827333,0.00041095,120]
[408834900,1774338672084,-1447.52,0.00041095,120]
[408834901,1774338672094,-500.0,0.00041095,120]
[408834902,1774338672104,-500.0,0.00041095,120]
[408834903,1774338672114,-500.0,0.00041095,120]
[408834904,1774338672123,-500.0,0.00041095,120]
[408834905,1774338672133,-500.0,0.00041095,120]
[408834906,1774338672142,-500.0,0.00041095,120]
[408834907,1774338672152,-634.53,0.00041095,120]
[408834908,1774338672162,-500.0,0.00041095,120]
[408834909,1774338672171,-500.0,0.00041095,120]
[408834910,1774338672181,-500.0,0.00041095,120]
[408834911,1774338672190,-500.0,0.00041095,120]
[408834912,1774338672200,-500.0,0.00041095,120]
[408834913,1774338672210,-514.43,0.00041095,120]
[408834914,1774338672219,-500.0,0.00041095,120]
[408834915,1774338672229,-500.0,0.00041095,120]
[408834916,1774338672238,-500.0,0.00041095,120]
[408834917,1774338672248,-1530.3,0.00041095,120]
[408834918,1774338672257,-1437.77,0.00041095,120]
[408834919,1774338672267,-500.0,0.00041095,120]
[408834920,1774338672276,-735.64,0.00041095,120]
[408834921,1774338672285,-500.0,0.00041095,120]
[408834922,1774338672294,-798.73,0.00041095,120]
[408834923,1774338672304,-500.0,0.00041095,120]
[408834924,1774338672313,-500.0,0.00041095,120]
[408834925,1774338672325,-2864.08,0.00041095,120]
[408834926,1774338672335,-500.0,0.00041095,120]
[408834927,1774338672345,-534.31,0.00041095,120]
[408834928,1774338672358,-500.0,0.00041095,120]
[408834929,1774338672369,-500.0,0.00041095,120]
[408834930,1774338672379,-500.0,0.00041095,120]
[408834931,1774338672389,-800.61,0.00041095,120]
[408834932,1774338672398,-500.0,0.00041095,120]
[408834933,1774338672415,-500.0,0.00041095,120]
[408834934,1774338672425,-500.0,0.00041095,120]
[408834935,1774338672436,-500.0,0.00041095,120]
[408834936,1774338672445,-500.0,0.00041095,120]
[408834937,1774338672454,-1519.14,0.00041095,120]
[408834938,1774338672463,-500.0,0.00041095,12]
[408834939,1774338672472,-500.0,0.00041095,120]
[408834940,1774338672481,-500.0,0.00041095,120]
[408834941,1774338672491,-547.19,0.00041095,120]
[408834942,1774338672500,-971.22,0.00041095,120]
[408834943,1774338672510,-579.61,0.00041095,120]
[408834944,1774338672519,-500.0,0.00041095,120]
[408834945,1774338672529,-2175.73,0.00041095,120]
[408834946,1774338672538,-500.0,0.00041095,120]
[408834947,1774338672547,-1404.43,0.00041095,120]
[408834948,1774338672556,-651.63,0.00041095,120]
[408834949,1774338672566,-500.0,0.00041095,120]
[408834950,1774338672575,-500.0,0.00041095,120]
[408834951,1774338672585,-500.0,0.00041095,120]
[408834952,1774338672595,-500.0,0.00041095,120]
[408834953,1774338672604,-769.19,0.00041095,120]
[408834954,1774338672614,-500.0,0.00041095,120]
[408834955,1774338672623,-1046.52,0.00041095,120]
[408834956,1774338672632,-666.77,0.00041095,120]
[408834957,1774338672642,-500.0,0.00041095,120]
[408834958,1774338672651,-500.0,0.00041095,120]
[408834959,1774338672660,-559.02360272,0.00041095,120]
[408834960,1774338672670,-613.47,0.00041095,120]
[408834961,1774338672679,-500.0,0.00041095,120]
[408834962,1774338672688,-500.0,0.00041095,120]
[408834963,1774338672697,-500.0,0.00041095,120]
[408834964,1774338672707,-500.0,0.00041095,120]
[408834965,1774338672716,-500.0,0.00041095,120]
[408834966,1774338672726,-500.0,0.00041095,120]
[408834967,1774338672734,-664.14,0.00041095,120]
[408834968,1774338672744,-500.0,0.00041095,120]
[408834969,1774338672753,-500.55,0.00041095,120]
[408834970,1774338672762,-1409.42,0.00041095,120]
[408834971,1774338672772,-500.0,0.00041095,120]
[408834972,1774338672781,-500.0,0.00041095,120]
[408834973,1774338672790,-500.0,0.00041095,120]
[408834974,1774338672800,-1958.04,0.00041095,120]
[408834975,1774338672809,-500.0,0.00041095,120]
[408834976,1774338672818,-1000.0,0.00041095,120]
[408834977,1774338672827,-500.0,0.00041095,120]
[408834978,1774338672837,-500.0,0.00041095,120]
[408834979,1774338672847,-500.0,0.00041095,120]
[408834980,1774338672856,-845.98,0.00041095,120]
[408834981,1774338672866,-788.97,0.00041095,120]
[408834982,1774338672875,-500.0,0.00041095,120]
[408834983,1774338672884,-500.0,0.00041095,120]
[408834984,1774338672893,-979.08,0.00041095,120]
[408834985,1774338672903,-2271.51,0.00041095,120]
[408834986,1774338672912,-541.87251203,0.00041095,120]
[408834987,1774338672921,-798.9,0.00041095,120]
[408834988,1774338672931,-785.73,0.00041095,120]
[408834989,1774338672940,-500.0,0.00041095,120]
[408834990,1774338672949,-1319.48,0.00041095,120]
[408834991,1774338672958,-500.0,0.00041095,120]
[408834992,1774338672967,-898.9,0.00041095,120]